[Event "Early-Titled-Tuesday-Blitz-January-23-2024"]
[Site "Chess.com"]
[Date "2024.01.23"]
[Round "3"]
[White "agvega14"]
[Black "Baronessa08"]
[Result "0-1"]
[WhiteElo "2162"]
[BlackElo "2540"]
[TimeControl "180+1"]
[EndTime "8:28:42 PST"]
[Termination "Baronessa08 won on time"]

1. e4 {[%clk 0:03:00.9]} 1... c5 {[%clk 0:02:58.1]} 2. Nf3 {[%clk 0:02:59.4]}
2... Nc6 {[%clk 0:02:55.1]} 3. c3 {[%clk 0:02:58]} 3... Nf6 {[%clk 0:02:54.5]}
4. e5 {[%clk 0:02:48.2]} 4... Nd5 {[%clk 0:02:53.7]} 5. Bc4 {[%clk 0:02:46.6]}
5... e6 {[%clk 0:02:52.9]} 6. O-O {[%clk 0:02:45]} 6... d6 {[%clk 0:02:51.6]} 7.
d4 {[%clk 0:02:20.5]} 7... cxd4 {[%clk 0:02:51.2]} 8. cxd4 {[%clk 0:02:20.3]}
8... Be7 {[%clk 0:02:50.4]} 9. Nc3 {[%clk 0:02:18.4]} 9... Nxc3 {[%clk
0:02:49.4]} 10. bxc3 {[%clk 0:02:18.5]} 10... dxe5 {[%clk 0:02:49.7]} 11. Bb5
{[%clk 0:02:12.7]} 11... exd4 {[%clk 0:02:45.2]} 12. cxd4 {[%clk 0:02:09]} 12...
O-O {[%clk 0:02:28.1]} 13. Re1 {[%clk 0:02:01.4]} 13... Qd5 {[%clk 0:02:17.3]}
14. Bxc6 {[%clk 0:01:45.8]} 14... Qxc6 {[%clk 0:02:16.7]} 15. d5 {[%clk
0:01:08.8]} 15... Qa6 {[%clk 0:01:51.5]} 16. Bb2 {[%clk 0:01:05.1]} 16... Rd8
{[%clk 0:01:43.5]} 17. Qb3 {[%clk 0:00:46.2]} 17... Rxd5 {[%clk 0:01:32.5]} 18.
Rad1 {[%clk 0:00:46.7]} 18... Rxd1 {[%clk 0:01:28.6]} 19. Rxd1 {[%clk
0:00:46.7]} 19... Qc6 {[%clk 0:01:09.4]} 20. Ne5 {[%clk 0:00:43.4]} 20... Qe8
{[%clk 0:01:09.2]} 21. Ng4 {[%clk 0:00:35.9]} 21... f6 {[%clk 0:00:35.5]} 22.
Qg3 {[%clk 0:00:27.6]} 22... Kh8 {[%clk 0:00:35.2]} 23. Qc7 {[%clk 0:00:25.7]}
23... h5 {[%clk 0:00:33.6]} 24. Ne3 {[%clk 0:00:22.4]} 24... e5 {[%clk
0:00:27.9]} 25. Nd5 {[%clk 0:00:19.8]} 25... Bd8 {[%clk 0:00:27.8]} 26. Qc3
{[%clk 0:00:19.1]} 26... Bg4 {[%clk 0:00:26.7]} 27. f3 {[%clk 0:00:17.2]} 27...
Rc8 {[%clk 0:00:25.6]} 28. Qd2 {[%clk 0:00:16.7]} 28... Be6 {[%clk 0:00:25.4]}
29. Qd3 {[%clk 0:00:15.8]} 29... Bxd5 {[%clk 0:00:23.7]} 30. Qxd5 {[%clk
0:00:16]} 30... Bb6+ {[%clk 0:00:24.3]} 31. Kh1 {[%clk 0:00:15.8]} 31... Rd8
{[%clk 0:00:23.8]} 32. Qb3 {[%clk 0:00:14.8]} 32... Rxd1+ {[%clk 0:00:22.9]} 33.
Qxd1 {[%clk 0:00:15.7]} 33... Qb5 {[%clk 0:00:22.6]} 34. Qc1 {[%clk 0:00:14.8]}
34... Qd3 {[%clk 0:00:19.9]} 35. h3 {[%clk 0:00:14.3]} 35... Kh7 {[%clk
0:00:20.2]} 36. a4 {[%clk 0:00:12.6]} 36... Qe3 {[%clk 0:00:20.5]} 37. Qc2+
{[%clk 0:00:12]} 37... e4 {[%clk 0:00:13.4]} 38. Qxe4+ {[%clk 0:00:11]} 38...
Qxe4 {[%clk 0:00:13.6]} 39. fxe4 {[%clk 0:00:11.9]} 39... Kg6 {[%clk 0:00:09.3]}
40. g3 {[%clk 0:00:12.2]} 40... Kg5 {[%clk 0:00:08.8]} 41. Kg2 {[%clk
0:00:12.7]} 41... h4 {[%clk 0:00:08.6]} 42. Bc1+ {[%clk 0:00:12.7]} 42... Kh5
{[%clk 0:00:08.9]} 43. g4+ {[%clk 0:00:12.9]} 43... Kg6 {[%clk 0:00:09.2]} 44.
Kf3 {[%clk 0:00:12.7]} 44... Kf7 {[%clk 0:00:09.3]} 45. Bf4 {[%clk 0:00:12.4]}
45... g5 {[%clk 0:00:09.2]} 46. Bb8 {[%clk 0:00:11.2]} 46... Ke6 {[%clk
0:00:09.3]} 47. Ke2 {[%clk 0:00:09.1]} 47... Bc5 {[%clk 0:00:09.1]} 48. Kd3
{[%clk 0:00:08.7]} 48... a6 {[%clk 0:00:09.4]} 49. Kc4 {[%clk 0:00:06.1]} 49...
Bd6 {[%clk 0:00:09.8]} 50. Ba7 {[%clk 0:00:06]} 50... Bg3 {[%clk 0:00:08.5]} 51.
Kd3 {[%clk 0:00:04.4]} 51... Bc7 {[%clk 0:00:06.6]} 52. Kc4 {[%clk 0:00:04.4]}
52... b6 {[%clk 0:00:07]} 53. Kd3 {[%clk 0:00:02.7]} 53... Kd7 {[%clk
0:00:06.9]} 54. Kc4 {[%clk 0:00:01.7]} 54... Kc6 {[%clk 0:00:07.1]} 55. a5
{[%clk 0:00:01.8]} 55... b5+ {[%clk 0:00:07.3]} 56. Kd3 {[%clk 0:00:01.1]} 56...
Bxa5 {[%clk 0:00:08]} 57. Bb8 {[%clk 0:00:01]} 57... Bd8 {[%clk 0:00:08]} 0-1

[Event "Early-Titled-Tuesday-Blitz-January-23-2024"]
[Site "Chess.com"]
[Date "2024.01.23"]
[Round "3"]
[White "Casper"]
[Black "baki83"]
[Result "1/2-1/2"]
[WhiteElo "2561"]
[BlackElo "2847"]
[TimeControl "180+1"]
[EndTime "8:28:44 PST"]
[Termination "Game drawn by repetition"]

1. Nf3 {[%clk 0:02:54.2]} 1... d5 {[%clk 0:02:59.7]} 2. b3 {[%clk 0:02:54.7]}
2... Bf5 {[%clk 0:02:58.7]} 3. Bb2 {[%clk 0:02:55.4]} 3... e6 {[%clk 0:02:58.8]}
4. e3 {[%clk 0:02:55.8]} 4... Nf6 {[%clk 0:02:58.1]} 5. Be2 {[%clk 0:02:55]}
5... h6 {[%clk 0:02:57.9]} 6. O-O {[%clk 0:02:55.3]} 6... Be7 {[%clk 0:02:57.4]}
7. c4 {[%clk 0:02:55.8]} 7... c6 {[%clk 0:02:57.3]} 8. Nc3 {[%clk 0:02:56.3]}
8... O-O {[%clk 0:02:57]} 9. d4 {[%clk 0:02:56.9]} 9... Nbd7 {[%clk 0:02:56.2]}
10. Bd3 {[%clk 0:02:56.7]} 10... Ne4 {[%clk 0:02:40.7]} 11. Qc2 {[%clk
0:02:49.8]} 11... Ndf6 {[%clk 0:02:26.2]} 12. Rfd1 {[%clk 0:02:45.5]} 12... Bb4
{[%clk 0:02:09.8]} 13. Ne5 {[%clk 0:02:28.5]} 13... Nxc3 {[%clk 0:01:58]} 14.
Bxc3 {[%clk 0:02:27.2]} 14... Bxd3 {[%clk 0:01:57.8]} 15. Rxd3 {[%clk
0:02:18.6]} 15... Bd6 {[%clk 0:01:57.6]} 16. Rad1 {[%clk 0:02:11.7]} 16... Qe7
{[%clk 0:01:57.4]} 17. f3 {[%clk 0:02:00.7]} 17... Rfd8 {[%clk 0:01:41.8]} 18.
Qe2 {[%clk 0:01:39.8]} 18... Nh7 {[%clk 0:01:24.4]} 19. e4 {[%clk 0:01:31.1]}
19... Qc7 {[%clk 0:01:04.7]} 20. f4 {[%clk 0:01:21.5]} 20... Nf6 {[%clk
0:01:03.5]} 21. exd5 {[%clk 0:00:40.2]} 21... exd5 {[%clk 0:01:03.6]} 22. Rh3
{[%clk 0:00:36.6]} 22... Qc8 {[%clk 0:00:53.2]} 23. Rdd3 {[%clk 0:00:33.1]}
23... Ne4 {[%clk 0:00:41.1]} 24. c5 {[%clk 0:00:25.2]} 24... Bc7 {[%clk
0:00:33.2]} 25. Qh5 {[%clk 0:00:24.7]} 25... Bxe5 {[%clk 0:00:28.7]} 26. fxe5
{[%clk 0:00:20.3]} 26... Qe6 {[%clk 0:00:27.9]} 27. Ba5 {[%clk 0:00:15.9]} 27...
Rf8 {[%clk 0:00:26.6]} 28. Bc7 {[%clk 0:00:15.5]} 28... f5 {[%clk 0:00:24.9]}
29. Bd6 {[%clk 0:00:08.4]} 29... Rf7 {[%clk 0:00:25]} 30. Rdf3 {[%clk 0:00:08]}
30... Kh7 {[%clk 0:00:24.3]} 31. Kh1 {[%clk 0:00:06.2]} 31... Kg8 {[%clk
0:00:23.2]} 32. Rf1 {[%clk 0:00:05.4]} 32... Re8 {[%clk 0:00:21.3]} 33. a4
{[%clk 0:00:05.2]} 33... f4 {[%clk 0:00:21.1]} 34. Rhf3 {[%clk 0:00:04.6]} 34...
Nd2 {[%clk 0:00:17.9]} 35. Qh4 {[%clk 0:00:01.3]} 35... Nxf1 {[%clk 0:00:17.7]}
36. Rxf1 {[%clk 0:00:02.2]} 36... Qf5 {[%clk 0:00:17.2]} 37. a5 {[%clk
0:00:02.2]} 37... Re6 {[%clk 0:00:16.8]} 38. Qf2 {[%clk 0:00:02.3]} 38... Kh7
{[%clk 0:00:16.8]} 39. h3 {[%clk 0:00:02.6]} 39... Rg6 {[%clk 0:00:16.9]} 40.
Qe1 {[%clk 0:00:03]} 40... Qe4 {[%clk 0:00:16.7]} 41. Qf2 {[%clk 0:00:02.5]}
41... Rf5 {[%clk 0:00:16.1]} 42. Rg1 {[%clk 0:00:02.5]} 42... Rg3 {[%clk
0:00:16]} 43. Rf1 {[%clk 0:00:02.6]} 43... Rxh3+ {[%clk 0:00:16.1]} 44. Kg1
{[%clk 0:00:03.4]} 44... Rg3 {[%clk 0:00:16.4]} 45. Re1 {[%clk 0:00:03.4]} 45...
Qd3 {[%clk 0:00:15.7]} 46. e6 {[%clk 0:00:03.8]} 46... Rfg5 {[%clk 0:00:15.6]}
47. Bxf4 {[%clk 0:00:04.1]} 47... Rxg2+ {[%clk 0:00:15.9]} 48. Qxg2 {[%clk
0:00:05]} 48... Rxg2+ {[%clk 0:00:16.2]} 49. Kxg2 {[%clk 0:00:05.9]} 49... Qg6+
{[%clk 0:00:16.2]} 50. Kf3 {[%clk 0:00:05.6]} 50... Qh5+ {[%clk 0:00:16.4]} 51.
Kf2 {[%clk 0:00:06.1]} 51... Qh4+ {[%clk 0:00:16.3]} 52. Bg3 {[%clk 0:00:06.6]}
52... Qe7 {[%clk 0:00:16.6]} 53. Bd6 {[%clk 0:00:06.6]} 53... Qf6+ {[%clk
0:00:17]} 54. Kg2 {[%clk 0:00:06.4]} 54... Qg6+ {[%clk 0:00:16.5]} 55. Kf2
{[%clk 0:00:05.9]} 55... Qf5+ {[%clk 0:00:16.8]} 56. Kg2 {[%clk 0:00:05.9]}
56... Qg5+ {[%clk 0:00:17.1]} 57. Kf2 {[%clk 0:00:06.4]} 57... Qh4+ {[%clk
0:00:17.6]} 58. Bg3 {[%clk 0:00:05.7]} 58... Qxd4+ {[%clk 0:00:17.7]} 59. Kg2
{[%clk 0:00:05.9]} 59... Qd2+ {[%clk 0:00:15.2]} 60. Kg1 {[%clk 0:00:05.9]}
60... Qg5 {[%clk 0:00:14.3]} 61. Kg2 {[%clk 0:00:02.7]} 61... Qe7 {[%clk
0:00:14.3]} 62. Bd6 {[%clk 0:00:02.7]} 62... Qg5+ {[%clk 0:00:14.5]} 63. Bg3
{[%clk 0:00:03.5]} 63... Qe7 {[%clk 0:00:11.7]} 64. Bd6 {[%clk 0:00:03.4]} 64...
Qg5+ {[%clk 0:00:09.8]} 65. Bg3 {[%clk 0:00:03.9]} 1/2-1/2

[Event "Early-Titled-Tuesday-Blitz-January-23-2024"]
[Site "Chess.com"]
[Date "2024.01.23"]
[Round "3"]
[White "ErikRonka"]
[Black "Witik"]
[Result "0-1"]
[WhiteElo "2485"]
[BlackElo "2664"]
[TimeControl "180+1"]
[EndTime "8:28:45 PST"]
[Termination "Witik won by resignation"]

1. e4 {[%clk 0:03:00.9]} 1... e5 {[%clk 0:02:58.5]} 2. Nf3 {[%clk 0:03:01.1]}
2... Nc6 {[%clk 0:02:58.8]} 3. Bb5 {[%clk 0:03:01.2]} 3... a6 {[%clk 0:02:58.9]}
4. Ba4 {[%clk 0:03:01.9]} 4... Nf6 {[%clk 0:02:56.8]} 5. O-O {[%clk 0:03:01.8]}
5... b5 {[%clk 0:02:56.4]} 6. Bb3 {[%clk 0:03:01.8]} 6... Bc5 {[%clk 0:02:57.1]}
7. Re1 {[%clk 0:02:58.7]} 7... d6 {[%clk 0:02:46.6]} 8. h3 {[%clk 0:02:58]} 8...
Na5 {[%clk 0:02:42]} 9. c3 {[%clk 0:02:45.8]} 9... Nxb3 {[%clk 0:02:41.1]} 10.
axb3 {[%clk 0:02:46.7]} 10... Bb6 {[%clk 0:02:36.5]} 11. d4 {[%clk 0:02:41.1]}
11... O-O {[%clk 0:02:33.3]} 12. dxe5 {[%clk 0:02:24.2]} 12... dxe5 {[%clk
0:02:33.1]} 13. Qxd8 {[%clk 0:02:25.1]} 13... Rxd8 {[%clk 0:02:33.2]} 14. Bg5
{[%clk 0:02:00.2]} 14... Bb7 {[%clk 0:02:11.3]} 15. Bxf6 {[%clk 0:01:42.5]}
15... gxf6 {[%clk 0:02:11.1]} 16. Nbd2 {[%clk 0:01:43.4]} 16... Rd3 {[%clk
0:02:02.5]} 17. b4 {[%clk 0:01:28.4]} 17... a5 {[%clk 0:01:56.6]} 18. bxa5
{[%clk 0:01:27.6]} 18... Rxa5 {[%clk 0:01:57.5]} 19. Rxa5 {[%clk 0:01:19.6]}
19... Bxa5 {[%clk 0:01:58.4]} 20. Nf1 {[%clk 0:01:06.8]} 20... b4 {[%clk
0:01:38]} 21. cxb4 {[%clk 0:00:56.3]} 21... Bxb4 {[%clk 0:01:37.8]} 22. Rc1
{[%clk 0:00:50.2]} 22... Bxe4 {[%clk 0:01:34.2]} 23. Ne3 {[%clk 0:00:36.9]}
23... c5 {[%clk 0:00:59.3]} 24. Ra1 {[%clk 0:00:14.9]} 24... Kg7 {[%clk
0:00:29.7]} 25. Nh4 {[%clk 0:00:14.4]} 25... f5 {[%clk 0:00:11]} 26. Nhxf5+
{[%clk 0:00:07.7]} 26... Bxf5 {[%clk 0:00:11.5]} 27. Nxf5+ {[%clk 0:00:08.6]}
27... Kf6 {[%clk 0:00:12.2]} 28. Ne3 {[%clk 0:00:09]} 28... Ke6 {[%clk
0:00:11.3]} 29. Ra6+ {[%clk 0:00:08.1]} 29... Rd6 {[%clk 0:00:11.6]} 30. Rxd6+
{[%clk 0:00:07.1]} 30... Kxd6 {[%clk 0:00:12.1]} 31. Kf1 {[%clk 0:00:04.4]}
31... e4 {[%clk 0:00:11.5]} 32. Ke2 {[%clk 0:00:04.5]} 32... Ke5 {[%clk
0:00:11.9]} 33. Ng4+ {[%clk 0:00:04.5]} 33... Kd4 {[%clk 0:00:11.8]} 34. Ne3
{[%clk 0:00:05.4]} 34... c4 {[%clk 0:00:07.5]} 35. g4 {[%clk 0:00:04.8]} 35...
Bc5 {[%clk 0:00:06.5]} 36. Nf5+ {[%clk 0:00:04.8]} 36... Ke5 {[%clk 0:00:07.1]}
37. f3 {[%clk 0:00:03.8]} 37... exf3+ {[%clk 0:00:05]} 38. Kxf3 {[%clk 0:00:04]}
38... Bd4 {[%clk 0:00:05.8]} 39. Nxd4 {[%clk 0:00:01.2]} 39... Kxd4 {[%clk
0:00:06.5]} 40. Ke2 {[%clk 0:00:01.4]} 40... Ke4 {[%clk 0:00:06.4]} 41. Kd2
{[%clk 0:00:01.5]} 41... Kd4 {[%clk 0:00:07]} 42. Kc2 {[%clk 0:00:02.1]} 42...
f6 {[%clk 0:00:06.1]} 43. Kd2 {[%clk 0:00:02.6]} 43... Ke4 {[%clk 0:00:04.2]}
44. Kc3 {[%clk 0:00:02.9]} 44... Kd5 {[%clk 0:00:04.5]} 45. Kc2 {[%clk
0:00:03.1]} 45... Kd4 {[%clk 0:00:04.5]} 46. Kd2 {[%clk 0:00:03.7]} 46... h6
{[%clk 0:00:04]} 47. Kc2 {[%clk 0:00:03.9]} 47... Kd5 {[%clk 0:00:03.6]} 48. Kc3
{[%clk 0:00:04.5]} 48... Kc5 {[%clk 0:00:04]} 49. Kc2 {[%clk 0:00:05.1]} 49...
Kb4 {[%clk 0:00:04.7]} 50. Kc1 {[%clk 0:00:05.1]} 50... Kb3 {[%clk 0:00:05.2]}
51. Kb1 {[%clk 0:00:05.7]} 51... c3 {[%clk 0:00:05.7]} 52. bxc3 {[%clk
0:00:06.1]} 52... Kxc3 {[%clk 0:00:06.3]} 53. Kc1 {[%clk 0:00:05.7]} 53... Kd3
{[%clk 0:00:06.8]} 54. h4 {[%clk 0:00:06.1]} 54... Ke3 {[%clk 0:00:05.8]} 55.
Kd1 {[%clk 0:00:06.6]} 55... Kf4 {[%clk 0:00:05.7]} 56. g5 {[%clk 0:00:05.6]}
56... fxg5 {[%clk 0:00:04.4]} 57. hxg5 {[%clk 0:00:06.5]} 57... hxg5 {[%clk
0:00:04.3]} 58. Ke1 {[%clk 0:00:06.8]} 58... Kg3 {[%clk 0:00:04.1]} 59. Ke2
{[%clk 0:00:06.2]} 59... g4 {[%clk 0:00:03.9]} 60. Kf1 {[%clk 0:00:05.4]} 60...
Kh2 {[%clk 0:00:04.3]} 61. Kf2 {[%clk 0:00:05.6]} 61... g3+ {[%clk 0:00:04.9]}
0-1

[Event "Early-Titled-Tuesday-Blitz-January-23-2024"]
[Site "Chess.com"]
[Date "2024.01.23"]
[Round "3"]
[White "Squirlolz"]
[Black "AlexandraSamaganova"]
[Result "1-0"]
[WhiteElo "2572"]
[BlackElo "2380"]
[TimeControl "180+1"]
[EndTime "8:28:46 PST"]
[Termination "Squirlolz won by checkmate"]

1. d4 {[%clk 0:02:47.7]} 1... Nf6 {[%clk 0:02:59]} 2. Qd3 {[%clk 0:02:47.6]}
2... e6 {[%clk 0:02:57.5]} 3. Bg5 {[%clk 0:02:47.5]} 3... Be7 {[%clk 0:02:57.1]}
4. Nd2 {[%clk 0:02:47.7]} 4... c5 {[%clk 0:02:53.7]} 5. O-O-O {[%clk 0:02:47.5]}
5... cxd4 {[%clk 0:02:52.9]} 6. Ngf3 {[%clk 0:02:46.3]} 6... Nc6 {[%clk
0:02:51.4]} 7. Nxd4 {[%clk 0:02:46.1]} 7... d5 {[%clk 0:02:46.9]} 8. Kb1 {[%clk
0:02:43.3]} 8... O-O {[%clk 0:02:34.1]} 9. Nxc6 {[%clk 0:02:36.9]} 9... bxc6
{[%clk 0:02:33.8]} 10. e4 {[%clk 0:02:37.8]} 10... Rb8 {[%clk 0:02:23.4]} 11. e5
{[%clk 0:02:35.4]} 11... Nd7 {[%clk 0:02:22.1]} 12. h4 {[%clk 0:02:34.5]} 12...
Nxe5 {[%clk 0:02:13.3]} 13. Qg3 {[%clk 0:02:34.8]} 13... f6 {[%clk 0:02:00.4]}
14. Bh6 {[%clk 0:02:34.3]} 14... Rf7 {[%clk 0:02:00.7]} 15. Nb3 {[%clk
0:02:26.8]} 15... c5 {[%clk 0:01:48.6]} 16. f4 {[%clk 0:02:24.1]} 16... Nc6
{[%clk 0:01:35.1]} 17. f5 {[%clk 0:02:24.4]} 17... Bd6 {[%clk 0:01:22.3]} 18.
Bf4 {[%clk 0:02:15]} 18... e5 {[%clk 0:01:21.1]} 19. Bc1 {[%clk 0:02:13.2]}
19... Nd4 {[%clk 0:01:07.8]} 20. h5 {[%clk 0:02:01.2]} 20... Bxf5 {[%clk
0:01:03.7]} 21. Nxd4 {[%clk 0:01:59.7]} 21... cxd4 {[%clk 0:01:03.3]} 22. h6
{[%clk 0:02:00.1]} 22... Qc7 {[%clk 0:00:54.2]} 23. Qf2 {[%clk 0:01:57.4]} 23...
g6 {[%clk 0:00:41.7]} 24. Bd3 {[%clk 0:01:55.5]} 24... e4 {[%clk 0:00:40.3]} 25.
Bf1 {[%clk 0:01:44.1]} 25... Be5 {[%clk 0:00:36.3]} 26. Rg1 {[%clk 0:01:24.3]}
26... Qb6 {[%clk 0:00:24.9]} 27. g4 {[%clk 0:01:21.4]} 27... Be6 {[%clk
0:00:20.6]} 28. b3 {[%clk 0:01:12.7]} 28... a5 {[%clk 0:00:19.1]} 29. Bb2 {[%clk
0:01:11.2]} 29... e3 {[%clk 0:00:18.1]} 30. Qf3 {[%clk 0:01:06.2]} 30... a4
{[%clk 0:00:18]} 31. Bd3 {[%clk 0:00:43]} 31... axb3 {[%clk 0:00:17.1]} 32. axb3
{[%clk 0:00:43.9]} 32... Ra8 {[%clk 0:00:16.3]} 33. Bf5 {[%clk 0:00:43.8]} 33...
Qa6 {[%clk 0:00:13.4]} 34. Rd3 {[%clk 0:00:43.4]} 34... Rc7 {[%clk 0:00:04.4]}
35. Bxe6+ {[%clk 0:00:29.5]} 35... Qxe6 {[%clk 0:00:05.3]} 36. Bxd4 {[%clk
0:00:30.1]} 36... Bxd4 {[%clk 0:00:05.1]} 37. Rxd4 {[%clk 0:00:31]} 37... Qc6
{[%clk 0:00:04.6]} 38. Qxd5+ {[%clk 0:00:30.9]} 38... Qxd5 {[%clk 0:00:04.9]}
39. Rxd5 {[%clk 0:00:31.8]} 39... Rca7 {[%clk 0:00:04.3]} 40. Kb2 {[%clk
0:00:10.8]} 40... Ra2+ {[%clk 0:00:04.4]} 41. Kc3 {[%clk 0:00:11.4]} 41... Ra1
{[%clk 0:00:04.5]} 42. Rg2 {[%clk 0:00:03]} 42... R1a6 {[%clk 0:00:02.6]} 43.
Rd7 {[%clk 0:00:02.8]} 43... Re8 {[%clk 0:00:02.5]} 44. Re2 {[%clk 0:00:02.7]}
44... Rc6+ {[%clk 0:00:01.9]} 45. Kd3 {[%clk 0:00:03.3]} 45... Rec8 {[%clk
0:00:01.6]} 46. c4 {[%clk 0:00:03.5]} 46... Rb6 {[%clk 0:00:01.6]} 47. Rg7+
{[%clk 0:00:02.1]} 47... Kh8 {[%clk 0:00:01.5]} 48. Kc3 {[%clk 0:00:03]} 48...
Rcb8 {[%clk 0:00:01.5]} 49. b4 {[%clk 0:00:01.9]} 49... g5 {[%clk 0:00:01.8]}
50. b5 {[%clk 0:00:01.7]} 50... Rd6 {[%clk 0:00:01.8]} 51. Rxe3 {[%clk
0:00:02.1]} 51... f5 {[%clk 0:00:02.2]} 52. Rge7 {[%clk 0:00:02.6]} 52... Rxh6
{[%clk 0:00:02.4]} 53. Re8+ {[%clk 0:00:03.1]} 53... Rxe8 {[%clk 0:00:01.9]} 54.
Rxe8+ {[%clk 0:00:04]} 54... Kg7 {[%clk 0:00:02.7]} 55. c5 {[%clk 0:00:04.7]}
55... fxg4 {[%clk 0:00:02.7]} 56. b6 {[%clk 0:00:05.4]} 56... Rh4 {[%clk
0:00:03.1]} 57. b7 {[%clk 0:00:05.5]} 57... Rh3+ {[%clk 0:00:04]} 58. Kc4 {[%clk
0:00:05.6]} 58... Rh1 {[%clk 0:00:03.9]} 59. b8=Q {[%clk 0:00:05.6]} 59... Rc1+
{[%clk 0:00:04.8]} 60. Kd5 {[%clk 0:00:05.8]} 60... Kh6 {[%clk 0:00:05.4]} 61.
Qh2+ {[%clk 0:00:05.6]} 61... Kg6 {[%clk 0:00:05.2]} 62. Re6+ {[%clk 0:00:06.1]}
62... Kf5 {[%clk 0:00:05.3]} 63. Qe5# {[%clk 0:00:06.2]} 1-0

[Event "Early-Titled-Tuesday-Blitz-January-23-2024"]
[Site "Chess.com"]
[Date "2024.01.23"]
[Round "3"]
[White "Sibelephant"]
[Black "vasblesk"]
[Result "1-0"]
[WhiteElo "3079"]
[BlackElo "2774"]
[TimeControl "180+1"]
[EndTime "8:28:47 PST"]
[Termination "Sibelephant won by resignation"]

1. Nf3 {[%clk 0:02:59.1]} 1... Nf6 {[%clk 0:02:57.8]} 2. g3 {[%clk 0:02:58.2]}
2... g6 {[%clk 0:02:57.5]} 3. Bg2 {[%clk 0:02:58.2]} 3... Bg7 {[%clk 0:02:57.7]}
4. d4 {[%clk 0:02:58.4]} 4... O-O {[%clk 0:02:57.3]} 5. O-O {[%clk 0:02:58.5]}
5... d5 {[%clk 0:02:57.1]} 6. c4 {[%clk 0:02:58]} 6... c6 {[%clk 0:02:57.2]} 7.
Qb3 {[%clk 0:02:56.3]} 7... Qb6 {[%clk 0:02:55.4]} 8. Nc3 {[%clk 0:02:47.6]}
8... Be6 {[%clk 0:02:30.6]} 9. c5 {[%clk 0:02:17.2]} 9... Qxb3 {[%clk 0:02:20]}
10. axb3 {[%clk 0:02:17.3]} 10... Na6 {[%clk 0:02:19.7]} 11. Bf4 {[%clk
0:01:56.2]} 11... h6 {[%clk 0:02:16.5]} 12. Ra4 {[%clk 0:01:38.3]} 12... g5
{[%clk 0:02:14.8]} 13. Be5 {[%clk 0:01:37.5]} 13... Nd7 {[%clk 0:01:57.4]} 14.
Bxg7 {[%clk 0:01:36.8]} 14... Kxg7 {[%clk 0:01:58.3]} 15. Rfa1 {[%clk
0:01:36.9]} 15... Rfb8 {[%clk 0:01:44.9]} 16. b4 {[%clk 0:01:25.9]} 16... Nc7
{[%clk 0:01:19.3]} 17. Rxa7 {[%clk 0:01:25.1]} 17... Rxa7 {[%clk 0:01:20.2]} 18.
Rxa7 {[%clk 0:01:25.2]} 18... Na6 {[%clk 0:01:12.8]} 19. b5 {[%clk 0:01:23.2]}
19... cxb5 {[%clk 0:01:13.6]} 20. Nxb5 {[%clk 0:01:02.3]} 20... Nf6 {[%clk
0:01:09.3]} 21. Nd2 {[%clk 0:00:38.8]} 21... Bd7 {[%clk 0:00:57]} 22. Nc3 {[%clk
0:00:38.6]} 22... Bc6 {[%clk 0:00:56.5]} 23. e3 {[%clk 0:00:30.4]} 23... e6
{[%clk 0:00:49.2]} 24. Bf1 {[%clk 0:00:30.5]} 24... Ne8 {[%clk 0:00:35.2]} 25.
Nb3 {[%clk 0:00:24.1]} 25... Nec7 {[%clk 0:00:29.2]} 26. Na5 {[%clk 0:00:23.3]}
26... Nb4 {[%clk 0:00:28.8]} 27. Nxc6 {[%clk 0:00:22.1]} 27... Nxc6 {[%clk
0:00:29]} 28. Ra4 {[%clk 0:00:18.5]} 28... b6 {[%clk 0:00:11.2]} 29. Nb5 {[%clk
0:00:18.7]} 29... Nxb5 {[%clk 0:00:09]} 30. Bxb5 {[%clk 0:00:18.6]} 30... Ne7
{[%clk 0:00:09.2]} 31. cxb6 {[%clk 0:00:05.8]} 31... Rxb6 {[%clk 0:00:09.1]} 32.
Ra5 {[%clk 0:00:06.5]} 32... Nc8 {[%clk 0:00:08]} 33. b3 {[%clk 0:00:05.3]}
33... Nd6 {[%clk 0:00:08.4]} 34. Ba4 {[%clk 0:00:05.7]} 34... Rb4 {[%clk
0:00:03.3]} 35. Kg2 {[%clk 0:00:04.9]} 35... Rb6 {[%clk 0:00:02.5]} 36. Ra7
{[%clk 0:00:04.8]} 36... Kf6 {[%clk 0:00:02.9]} 37. g4 {[%clk 0:00:05.1]} 37...
Ne4 {[%clk 0:00:02.8]} 38. h3 {[%clk 0:00:04.2]} 38... Nd6 {[%clk 0:00:03]} 39.
Kf3 {[%clk 0:00:04.5]} 39... Kg6 {[%clk 0:00:02.1]} 40. Rc7 {[%clk 0:00:04.3]}
40... Kf6 {[%clk 0:00:02.6]} 41. Rc6 {[%clk 0:00:04.2]} 41... Rxc6 {[%clk
0:00:03.2]} 42. Bxc6 {[%clk 0:00:04.7]} 42... Ke7 {[%clk 0:00:03.9]} 43. Ke2
{[%clk 0:00:04.4]} 43... Kd8 {[%clk 0:00:04.5]} 44. f3 {[%clk 0:00:03.7]} 44...
Kc7 {[%clk 0:00:05.1]} 45. Ba4 {[%clk 0:00:04.3]} 45... f6 {[%clk 0:00:05.1]}
46. Kd3 {[%clk 0:00:04.6]} 46... f5 {[%clk 0:00:05.1]} 47. b4 {[%clk 0:00:03.6]}
47... Kb6 {[%clk 0:00:05.4]} 48. Bd7 {[%clk 0:00:03.4]} 48... fxg4 {[%clk
0:00:02.1]} 49. hxg4 {[%clk 0:00:04.3]} 49... e5 {[%clk 0:00:01.6]} 50. dxe5
{[%clk 0:00:04.4]} 50... Nc4 {[%clk 0:00:02.5]} 51. e6 {[%clk 0:00:04.7]} 51...
Kc7 {[%clk 0:00:02.1]} 52. Bb5 {[%clk 0:00:04.1]} 52... Ne5+ {[%clk 0:00:02]}
53. Ke2 {[%clk 0:00:03.1]} 53... Kd6 {[%clk 0:00:02.2]} 54. Bd7 {[%clk
0:00:03.4]} 54... Ng6 {[%clk 0:00:01.5]} 55. b5 {[%clk 0:00:03.7]} 55... Ne5
{[%clk 0:00:01.7]} 56. b6 {[%clk 0:00:03.3]} 56... Nxd7 {[%clk 0:00:02.2]} 57.
exd7 {[%clk 0:00:03.4]} 57... Kxd7 {[%clk 0:00:03.1]} 58. Kd3 {[%clk 0:00:03.9]}
58... Kc6 {[%clk 0:00:04]} 59. Kd4 {[%clk 0:00:04.5]} 59... Kxb6 {[%clk
0:00:04.1]} 60. Kxd5 {[%clk 0:00:05.1]} 60... Kc7 {[%clk 0:00:04.8]} 61. Ke6
{[%clk 0:00:05.4]} 61... Kc6 {[%clk 0:00:05.3]} 62. e4 {[%clk 0:00:05.4]} 62...
Kc5 {[%clk 0:00:05.2]} 63. e5 {[%clk 0:00:05.9]} 63... Kd4 {[%clk 0:00:05.9]}
64. Kf5 {[%clk 0:00:06.3]} 1-0